[Event "Saint Louis Masters"]
[Date "2024.12.03"]
[White "Caruana, Fabiano"]
[Black "Kevlishvili, Robby"]
[WhiteElo "2805"]
[BlackElo "2556"]
[Round "2.1"]
[Result "1-0"]
[TimeControl "5400+30"]

1. e4 {[%clk 01:30:56] [%emt 00:00:04]} c5 {[%clk 01:30:53] [%emt 00:00:08]} 2.
Nf3 {[%clk 01:31:19] [%emt 00:00:07]} Nc6 {[%clk 01:31:16] [%emt 00:00:07]} 3.
Bb5 {[%clk 01:30:49] [%emt 00:00:59]} d6 {[%clk 01:31:38] [%emt 00:00:08]} 4.
O-O {[%clk 01:31:08] [%emt 00:00:12]} Bd7 {[%clk 01:32:03] [%emt 00:00:05]} 5.
Re1 {[%clk 01:30:35] [%emt 00:01:03]} Nf6 {[%clk 01:32:19] [%emt 00:00:13]} 6.
c3 {[%clk 01:29:54] [%emt 00:01:11]} a6 {[%clk 01:32:42] [%emt 00:00:07]} 7. Bf1
{[%clk 01:30:21] [%emt 00:00:03]} Bg4 {[%clk 01:33:07] [%emt 00:00:06]} 8. h3
{[%clk 01:29:08] [%emt 00:01:43]} Bxf3 {[%clk 01:33:30] [%emt 00:00:07]} 9. Qxf3
{[%clk 01:29:34] [%emt 00:00:03]} e6 {[%clk 01:33:52] [%emt 00:00:08]} 10. d3
{[%clk 01:29:39] [%emt 00:00:26]} Be7 {[%clk 01:34:15] [%emt 00:00:06]} 11. Nd2
{[%clk 01:24:24] [%emt 00:05:47]} O-O {[%clk 01:34:35] [%emt 00:00:09]} 12. Qd1
{[%clk 01:24:45] [%emt 00:00:09]} d5 {[%clk 01:33:45] [%emt 00:01:19]} 13. e5
{[%clk 01:22:46] [%emt 00:02:29]} Nd7 {[%clk 01:34:08] [%emt 00:00:07]} 14. Nf3
{[%clk 01:23:13] [%emt 00:00:04]} d4 {[%clk 01:32:45] [%emt 00:01:52]} 15. g3
{[%clk 01:13:36] [%emt 00:10:08]} a5 {[%clk 01:29:41] [%emt 00:03:33]} 16. a4
{[%clk 01:09:42] [%emt 00:04:25]} Qb8 {[%clk 01:26:34] [%emt 00:03:37]} 17. Qe2
{[%clk 00:51:03] [%emt 00:19:09]} b5 {[%clk 01:23:21] [%emt 00:03:42]} 18. axb5
{[%clk 00:51:29] [%emt 00:00:05]} Qxb5 {[%clk 01:23:46] [%emt 00:00:04]} 19. c4
{[%clk 00:51:03] [%emt 00:00:57]} Qb8 {[%clk 01:21:18] [%emt 00:02:57]} 20. h4
{[%clk 00:50:19] [%emt 00:01:15]} Bd8 {[%clk 01:16:45] [%emt 00:05:03]} 21. Bf4
{[%clk 00:50:06] [%emt 00:00:43]} Ra6 {[%clk 01:15:50] [%emt 00:01:25]} 22. h5
{[%clk 00:44:24] [%emt 00:06:12]} Rb6 {[%clk 01:10:44] [%emt 00:05:36]} 23. Qe4
{[%clk 00:37:57] [%emt 00:06:57]} Qc8 {[%clk 01:03:55] [%emt 00:07:18]} 24. Re2
{[%clk 00:28:22] [%emt 00:10:06]} Re8 {[%clk 00:58:50] [%emt 00:05:35]} 25. Bh3
{[%clk 00:26:42] [%emt 00:02:09]} Qb7 {[%clk 00:50:28] [%emt 00:08:52]} 26. Nh2
{[%clk 00:18:41] [%emt 00:08:32]} Nb4 {[%clk 00:42:46] [%emt 00:08:12]} 27. Qxb7
{[%clk 00:18:51] [%emt 00:00:20]} Rxb7 {[%clk 00:43:11] [%emt 00:00:05]} 28. Ra3
{[%clk 00:19:18] [%emt 00:00:03]} Bc7 {[%clk 00:42:56] [%emt 00:00:44]} 29. Ng4
{[%clk 00:18:55] [%emt 00:00:53]} Nc6 {[%clk 00:31:35] [%emt 00:11:51]} 30. h6
{[%clk 00:14:42] [%emt 00:04:44]} g6 {[%clk 00:31:32] [%emt 00:00:33]} 31. Bg2
{[%clk 00:09:13] [%emt 00:05:59]} Rb6 {[%clk 00:31:56] [%emt 00:00:06]} 32. Bd2
{[%clk 00:05:25] [%emt 00:04:17]} Ra8 {[%clk 00:29:09] [%emt 00:03:17]} 33. f4
{[%clk 00:05:13] [%emt 00:00:42]} Raa6 {[%clk 00:29:27] [%emt 00:00:13]} 34. Bc1
{[%clk 00:04:58] [%emt 00:00:45]} Ne7 {[%clk 00:28:29] [%emt 00:01:28]} 35. Bf3
{[%clk 00:04:17] [%emt 00:01:11]} Kf8 {[%clk 00:28:38] [%emt 00:00:21]} 36. Kg2
{[%clk 00:04:11] [%emt 00:00:37]} Ng8 {[%clk 00:28:49] [%emt 00:00:18]} 37. b3
{[%clk 00:02:29] [%emt 00:02:13]} f5 {[%clk 00:25:39] [%emt 00:03:40]} 38. exf6
{[%clk 00:02:55] [%emt 00:00:05]} Ndxf6 {[%clk 00:26:02] [%emt 00:00:06]} 39.
Nxf6 {[%clk 00:03:17] [%emt 00:00:08]} Nxf6 {[%clk 00:26:29] [%emt 00:00:03]}
40. Rea2 {[%clk 00:03:26] [%emt 00:00:21]} Rb8 {[%clk 00:25:36] [%emt 00:01:23]}
41. g4 {[%clk 00:02:14] [%emt 00:01:42]} Ng8 {[%clk 00:24:45] [%emt 00:01:21]}
42. g5 {[%clk 00:02:41] [%emt 00:00:03]} Ne7 {[%clk 00:24:53] [%emt 00:00:22]}
43. Bd2 {[%clk 00:02:59] [%emt 00:00:12]} Nf5 {[%clk 00:25:10] [%emt 00:00:13]}
44. Be4 {[%clk 00:03:09] [%emt 00:00:20]} Kg8 {[%clk 00:20:50] [%emt 00:04:49]}
45. Kf3 {[%clk 00:03:35] [%emt 00:00:04]} Ne3 {[%clk 00:17:09] [%emt 00:04:10]}
46. Bxa5 {[%clk 00:03:40] [%emt 00:00:26]} Bd6 {[%clk 00:17:36] [%emt 00:00:03]}
47. Bd2 {[%clk 00:03:21] [%emt 00:00:49]} Rxa3 {[%clk 00:17:59] [%emt 00:00:07]}
48. Rxa3 {[%clk 00:03:48] [%emt 00:00:03]} Rf8 {[%clk 00:18:23] [%emt 00:00:06]}
49. Ke2 {[%clk 00:01:24] [%emt 00:02:55]} Bxf4 {[%clk 00:17:54] [%emt 00:00:59]}
50. Ra5 {[%clk 00:01:40] [%emt 00:00:14]} Bd6 {[%clk 00:17:39] [%emt 00:00:44]}
51. b4 {[%clk 00:00:53] [%emt 00:01:17]} cxb4 {[%clk 00:17:56] [%emt 00:00:13]}
52. c5 {[%clk 00:01:21] [%emt 00:00:03]} Bg3 {[%clk 00:18:04] [%emt 00:00:20]}
53. Bf3 {[%clk 00:01:18] [%emt 00:00:34]} Rb8 {[%clk 00:18:28] [%emt 00:00:06]}
54. Bc1 {[%clk 00:01:14] [%emt 00:00:34]} Nd5 {[%clk 00:17:11] [%emt 00:01:48]}
55. Bxd5 {[%clk 00:01:07] [%emt 00:00:37]} exd5 {[%clk 00:17:36] [%emt
00:00:04]} 56. Bb2 {[%clk 00:01:08] [%emt 00:00:29]} Re8+ {[%clk 00:17:35] [%emt
00:00:31]} 57. Kf3 {[%clk 00:01:11] [%emt 00:00:28]} Re3+ {[%clk 00:17:54] [%emt
00:00:11]} 58. Kg4 {[%clk 00:01:38] [%emt 00:00:02]} Kf7 {[%clk 00:16:23] [%emt
00:02:01]} 59. Ra7+ {[%clk 00:01:43] [%emt 00:00:25]} Ke6 {[%clk 00:16:45] [%emt
00:00:08]} 60. Bxd4 {[%clk 00:01:47] [%emt 00:00:27]} Rxd3 {[%clk 00:17:10]
[%emt 00:00:04]} 61. Bf6 {[%clk 00:02:14] [%emt 00:00:02]} d4 {[%clk 00:16:30]
[%emt 00:01:11]} 62. Rxh7 {[%clk 00:02:40] [%emt 00:00:05]} Bf2 {[%clk 00:14:03]
[%emt 00:02:56]} 63. Re7+ {[%clk 00:03:01] [%emt 00:00:09]} Kd5 {[%clk 00:14:27]
[%emt 00:00:06]} 64. h7 {[%clk 00:03:18] [%emt 00:00:13]} Rg3+ {[%clk 00:14:52]
[%emt 00:00:05]} 65. Kf4 {[%clk 00:03:46] [%emt 00:00:02]} Rh3 {[%clk 00:15:01]
[%emt 00:00:20]} 66. h8=Q {[%clk 00:04:11] [%emt 00:00:06]} Rxh8 {[%clk
00:15:25] [%emt 00:00:06]} 67. Bxh8 {[%clk 00:04:38] [%emt 00:00:04]} 1-0

[Site "Europe Echecs"]

[Event "Saint Louis Masters"]
[Date "2024.12.03"]
[White "Kantor, Gergely"]
[Black "Shankland, Sam"]
[WhiteElo "2550"]
[BlackElo "2672"]
[Round "2.2"]
[Result "0-1"]
[TimeControl "5400+30"]

1. d4 {[%clk 01:30:12]} Nf6 {[%clk 01:30:56] [%emt 00:25:05]} 2. c4 {[%clk
01:30:37]} g6 {[%clk 01:31:22] [%emt 00:00:08]} 3. Nc3 {[%clk 01:29:57]} Bg7
{[%clk 01:31:47] [%emt 00:01:15]} 4. e4 {[%clk 01:29:47]} d6 {[%clk 01:32:13]
[%emt 00:00:45]} 5. Nf3 {[%clk 01:29:20]} O-O {[%clk 01:32:36] [%emt 00:01:02]}
6. Be2 {[%clk 01:29:33]} e5 {[%clk 01:33:00] [%emt 00:00:25]} 7. O-O {[%clk
01:29:16]} Na6 {[%clk 01:33:15] [%emt 00:01:02]} 8. Be3 {[%clk 01:28:25]} c6
{[%clk 01:33:24] [%emt 00:01:42]} 9. dxe5 {[%clk 01:21:08]} dxe5 {[%clk
01:33:49] [%emt 00:07:52]} 10. Qxd8 {[%clk 01:19:24] [%emt 00:02:14]} Rxd8
{[%clk 01:34:13] [%emt 00:00:06]} 11. Nxe5 {[%clk 01:19:43] [%emt 00:00:11]}
Nxe4 {[%clk 01:31:19] [%emt 00:03:24]} 12. Nxe4 {[%clk 01:17:44] [%emt
00:02:29]} Bxe5 {[%clk 01:31:44] [%emt 00:00:05]} 13. Rad1 {[%clk 01:17:33]
[%emt 00:00:41]} Bf5 {[%clk 01:29:26] [%emt 00:02:47]} 14. Ng3 {[%clk 01:15:00]
[%emt 00:03:03]} Be6 {[%clk 01:28:04] [%emt 00:01:52]} 15. Rxd8+ {[%clk
01:04:34] [%emt 00:10:57]} Rxd8 {[%clk 01:28:28] [%emt 00:00:06]} 16. b3 {[%clk
01:04:20] [%emt 00:00:44]} b6 {[%clk 01:23:10] [%emt 00:05:48]} 17. Rd1 {[%clk
00:46:13] [%emt 00:18:36]} Rxd1+ {[%clk 01:22:42] [%emt 00:00:58]} 18. Bxd1
{[%clk 00:46:40] [%emt 00:00:03]} c5 {[%clk 01:22:53] [%emt 00:00:19]} 19. Ne4
{[%clk 00:30:07] [%emt 00:17:03]} Bf5 {[%clk 01:20:16] [%emt 00:03:07]} 20. f4
{[%clk 00:26:49] [%emt 00:03:48]} Bxe4 {[%clk 01:20:04] [%emt 00:00:43]} 21.
fxe5 {[%clk 00:26:58] [%emt 00:00:21]} Nb4 {[%clk 01:20:29] [%emt 00:00:05]} 22.
a3 {[%clk 00:24:13] [%emt 00:03:15]} Nc6 {[%clk 01:20:12] [%emt 00:00:46]} 23.
Bf4 {[%clk 00:24:00] [%emt 00:00:44]} Kf8 {[%clk 01:18:01] [%emt 00:02:41]} 24.
Kf2 {[%clk 00:21:18] [%emt 00:03:12]} Ke7 {[%clk 01:17:00] [%emt 00:01:31]} 25.
g3 {[%clk 00:06:31] [%emt 00:15:17]} h5 {[%clk 01:01:26] [%emt 00:16:03]} 26.
Ke3 {[%clk 00:05:38] [%emt 00:01:25]} Bf5 {[%clk 01:01:13] [%emt 00:00:43]} 27.
Kd2 {[%clk 00:04:59] [%emt 00:01:08]} Bg4 {[%clk 00:54:35] [%emt 00:07:09]} 28.
Bc2 {[%clk 00:05:00] [%emt 00:00:29]} Nd4 {[%clk 00:54:20] [%emt 00:00:45]} 29.
Kc3 {[%clk 00:03:55] [%emt 00:01:35]} Ke6 {[%clk 00:52:52] [%emt 00:01:58]} 30.
b4 {[%clk 00:03:26] [%emt 00:00:59]} Ne2+ {[%clk 00:52:16] [%emt 00:01:06]} 31.
Kd2 {[%clk 00:02:53] [%emt 00:01:03]} Nxf4 {[%clk 00:49:06] [%emt 00:03:40]} 32.
gxf4 {[%clk 00:03:17] [%emt 00:00:05]} g5 {[%clk 00:46:33] [%emt 00:03:03]} 33.
fxg5 {[%clk 00:01:51] [%emt 00:01:58]} Kxe5 {[%clk 00:46:17] [%emt 00:00:45]}
34. bxc5 {[%clk 00:01:16] [%emt 00:01:05]} bxc5 {[%clk 00:46:42] [%emt
00:00:05]} 35. Ke3 {[%clk 00:00:45] [%emt 00:01:02]} Bf5 {[%clk 00:44:52] [%emt
00:02:19]} 36. Bd1 {[%clk 00:00:42] [%emt 00:00:33]} h4 {[%clk 00:45:09] [%emt
00:00:13]} 37. Be2 {[%clk 00:00:35] [%emt 00:00:37]} Be6 {[%clk 00:42:40] [%emt
00:02:58]} 38. Bd3 {[%clk 00:00:51] [%emt 00:00:14]} a5 {[%clk 00:42:17] [%emt
00:00:53]} 39. Be2 {[%clk 00:00:33] [%emt 00:00:48]} Kf5 {[%clk 00:42:20] [%emt
00:00:27]} 40. Bf1 {[%clk 00:00:51] [%emt 00:00:12]} Kxg5 {[%clk 00:40:11] [%emt
00:02:39]} 41. Be2 {[%clk 00:00:42] [%emt 00:00:39]} Kf5 {[%clk 00:40:22] [%emt
00:00:18]} 42. Kf3 {[%clk 00:00:50] [%emt 00:00:23]} Ke5 {[%clk 00:40:41] [%emt
00:00:11]} 43. Ke3 {[%clk 00:01:04] [%emt 00:00:16]} f5 {[%clk 00:40:14] [%emt
00:00:57]} 44. Bf1 {[%clk 00:01:31] [%emt 00:00:03]} Bd7 {[%clk 00:39:42] [%emt
00:01:01]} 45. Be2 {[%clk 00:01:47] [%emt 00:00:15]} Bc6 {[%clk 00:40:01] [%emt
00:00:10]} 46. Bf1 {[%clk 00:01:58] [%emt 00:00:20]} f4+ {[%clk 00:40:21] [%emt
00:00:09]} 47. Kd3 {[%clk 00:02:19] [%emt 00:00:10]} Be4+ {[%clk 00:40:32] [%emt
00:00:19]} 48. Kc3 {[%clk 00:02:41] [%emt 00:00:09]} f3 {[%clk 00:40:19] [%emt
00:00:42]} 49. Bh3 {[%clk 00:02:08] [%emt 00:01:02]} Bf5 {[%clk 00:40:10] [%emt
00:00:40]} 50. Bf1 {[%clk 00:02:28] [%emt 00:00:09]} Ke4 {[%clk 00:40:20] [%emt
00:00:20]} 51. Bd3+ {[%clk 00:01:23] [%emt 00:01:36]} Kf4 {[%clk 00:40:45] [%emt
00:00:04]} 52. Bf1 {[%clk 00:01:16] [%emt 00:00:38]} Ke3 {[%clk 00:41:09]} 0-1

[Site "Europe Echecs"]

[Event "Saint Louis Masters"]
[Date "2024.12.03"]
[White "Chirila, Ioan-Cristian"]
[Black "Hakobyan, Aram"]
[WhiteElo "2530"]
[BlackElo "2625"]
[Round "2.3"]
[Result "0-1"]
[TimeControl "5400+30"]

1. e4 {[%clk 01:22:32] [%emt 00:08:27]} e6 {[%clk 01:29:37] [%emt 00:01:23]} 2.
d4 {[%clk 01:22:48] [%emt 00:00:14]} d5 {[%clk 01:30:01] [%emt 00:00:06]} 3. e5
{[%clk 01:23:06] [%emt 00:00:13]} c5 {[%clk 01:30:24] [%emt 00:00:07]} 4. c3
{[%clk 01:23:30] [%emt 00:00:05]} Nc6 {[%clk 01:30:39] [%emt 00:00:16]} 5. Nf3
{[%clk 01:23:25] [%emt 00:00:34]} Bd7 {[%clk 01:30:47] [%emt 00:00:23]} 6. Bd3
{[%clk 01:21:25] [%emt 00:02:30]} cxd4 {[%clk 01:30:34] [%emt 00:00:42]} 7. cxd4
{[%clk 01:21:31] [%emt 00:00:24]} Qb6 {[%clk 01:30:52] [%emt 00:00:13]} 8. O-O
{[%clk 01:12:43] [%emt 00:09:17]} Nxd4 {[%clk 01:30:56] [%emt 00:00:27]} 9. Nxd4
{[%clk 01:12:01] [%emt 00:01:11]} Qxd4 {[%clk 01:31:07] [%emt 00:00:19]} 10. Re1
{[%clk 01:12:16] [%emt 00:00:15]} Ne7 {[%clk 01:22:01] [%emt 00:09:36]} 11. Nc3
{[%clk 01:10:10] [%emt 00:02:36]} a6 {[%clk 01:19:31] [%emt 00:03:01]} 12. Be3
{[%clk 00:55:47] [%emt 00:14:52]} Qxe5 {[%clk 01:15:46] [%emt 00:04:16]} 13. Qb3
{[%clk 00:53:14] [%emt 00:03:03]} d4 {[%clk 00:53:35] [%emt 00:22:41]} 14. f4
{[%clk 00:48:14] [%emt 00:05:30]} Qa5 {[%clk 00:40:31] [%emt 00:13:34]} 15. Bxd4
{[%clk 00:30:23] [%emt 00:18:20]} Nc6 {[%clk 00:40:32] [%emt 00:00:30]} 16. Be3
{[%clk 00:27:10] [%emt 00:03:42]} Bc5 {[%clk 00:39:47] [%emt 00:01:16]} 17. Ne4
{[%clk 00:26:07] [%emt 00:01:32]} Bxe3+ {[%clk 00:26:24] [%emt 00:13:53]} 18.
Rxe3 {[%clk 00:25:42] [%emt 00:00:55]} Qb4 {[%clk 00:25:20] [%emt 00:01:34]} 19.
Qc2 {[%clk 00:20:49] [%emt 00:05:23]} Ne7 {[%clk 00:15:06] [%emt 00:10:45]} 20.
Qf2 {[%clk 00:04:33] [%emt 00:16:46]} Bc6 {[%clk 00:12:17] [%emt 00:03:18]} 21.
Rc1 {[%clk 00:03:36] [%emt 00:01:27]} Rd8 {[%clk 00:10:29] [%emt 00:02:18]} 22.
a3 {[%clk 00:02:23] [%emt 00:01:44]} Qd4 {[%clk 00:09:33] [%emt 00:01:24]} 23.
Rc4 {[%clk 00:02:03] [%emt 00:00:50]} Qb6 {[%clk 00:09:34] [%emt 00:00:28]} 24.
Nc5 {[%clk 00:00:38] [%emt 00:01:56]} Bb5 {[%clk 00:09:24] [%emt 00:00:40]} 25.
Rc2 {[%clk 00:00:44] [%emt 00:00:25]} O-O {[%clk 00:04:59] [%emt 00:04:54]} 26.
Bxh7+ {[%clk 00:00:49] [%emt 00:00:25]} Kxh7 {[%clk 00:05:27] [%emt 00:00:02]}
27. Qh4+ {[%clk 00:00:32] [%emt 00:00:47]} Kg8 {[%clk 00:05:56]} 28. Qxe7 {[%clk
00:00:53] [%emt 00:00:09]} Rd1+ {[%clk 00:02:16] [%emt 00:04:09]} 29. Kf2 {[%clk
00:01:22] [%emt 00:00:01]} Rf1+ {[%clk 00:02:08] [%emt 00:00:37]} 30. Kg3 {[%clk
00:01:50] [%emt 00:00:03]} e5 {[%clk 00:02:32] [%emt 00:00:06]} 31. Rxe5 {[%clk
00:01:26] [%emt 00:00:54]} Qg6+ {[%clk 00:02:32] [%emt 00:00:30]} 32. Rg5 {[%clk
00:01:42] [%emt 00:00:15]} Qxc2 {[%clk 00:02:56] [%emt 00:00:06]} 33. Ne4 {[%clk
00:00:32] [%emt 00:01:40]} Qd3+ {[%clk 00:02:27] [%emt 00:00:58]} 0-1

[Site "Europe Echecs"]

[Event "Saint Louis Masters"]
[Date "2024.12.03"]
[White "Moradiabadi, Elshan"]
[Black "Zhou, Jianchao"]
[WhiteElo "2512"]
[BlackElo "2572"]
[Round "2.4"]
[Result "0-1"]
[TimeControl "5400+30"]

1. e4 {[%clk 01:30:23] [%emt 00:00:37]} c5 {[%clk 01:26:16] [%emt 00:04:45]} 2.
Nf3 {[%clk 01:30:47] [%emt 00:00:05]} d6 {[%clk 01:26:11] [%emt 00:00:36]} 3.
Bb5+ {[%clk 01:31:10] [%emt 00:00:07]} Bd7 {[%clk 01:26:27] [%emt 00:00:15]} 4.
Bxd7+ {[%clk 01:31:05] [%emt 00:00:35]} Qxd7 {[%clk 01:26:52] [%emt 00:00:05]}
5. O-O {[%clk 01:31:18] [%emt 00:00:16]} Nf6 {[%clk 01:27:12] [%emt 00:00:10]}
6. Re1 {[%clk 01:31:11] [%emt 00:00:37]} Nc6 {[%clk 01:27:06] [%emt 00:00:36]}
7. c3 {[%clk 01:31:32] [%emt 00:00:10]} e6 {[%clk 01:27:19] [%emt 00:00:16]} 8.
d4 {[%clk 01:31:55] [%emt 00:00:07]} cxd4 {[%clk 01:27:28] [%emt 00:00:21]} 9.
cxd4 {[%clk 01:32:21] [%emt 00:00:05]} d5 {[%clk 01:27:50] [%emt 00:00:07]} 10.
e5 {[%clk 01:32:47] [%emt 00:00:04]} Ne4 {[%clk 01:28:03] [%emt 00:00:17]} 11.
a3 {[%clk 01:33:14] [%emt 00:00:04]} Be7 {[%clk 01:27:16] [%emt 00:01:16]} 12.
Nbd2 {[%clk 01:33:42] [%emt 00:00:02]} Nxd2 {[%clk 01:27:34] [%emt 00:00:12]}
13. Bxd2 {[%clk 01:34:07] [%emt 00:00:04]} O-O {[%clk 01:27:11] [%emt 00:00:52]}
14. Rc1 {[%clk 01:34:30] [%emt 00:00:06]} Rac8 {[%clk 01:26:15] [%emt 00:01:27]}
15. Rc3 {[%clk 01:32:11] [%emt 00:02:50]} Nb8 {[%clk 01:25:31] [%emt 00:01:13]}
16. Rd3 {[%clk 01:28:33] [%emt 00:04:09]} Qc7 {[%clk 01:24:37] [%emt 00:01:23]}
17. Bc3 {[%clk 01:04:55] [%emt 00:24:08]} b5 {[%clk 01:23:52] [%emt 00:01:15]}
18. Qd2 {[%clk 01:04:37] [%emt 00:00:48]} Nc6 {[%clk 01:23:41] [%emt 00:00:41]}
19. h4 {[%clk 01:00:17] [%emt 00:04:50]} a5 {[%clk 01:22:01] [%emt 00:02:09]}
20. Qe3 {[%clk 00:57:03] [%emt 00:03:44]} b4 {[%clk 01:21:22] [%emt 00:01:10]}
21. Bd2 {[%clk 00:57:32]} bxa3 {[%clk 01:17:50] [%emt 00:04:01]} 22. bxa3 {[%clk
00:58:02] [%emt 00:00:01]} a4 {[%clk 01:17:48] [%emt 00:00:32]} 23. Qf4 {[%clk
00:41:47] [%emt 00:16:45]} Na5 {[%clk 01:00:46] [%emt 00:17:33]} 24. Qg4 {[%clk
00:40:53] [%emt 00:01:23]} Kh8 {[%clk 00:58:47] [%emt 00:02:28]} 25. Bg5 {[%clk
00:32:52] [%emt 00:08:32]} Nb3 {[%clk 00:53:37] [%emt 00:05:41]} 26. Qh5 {[%clk
00:22:18] [%emt 00:11:04]} Qd7 {[%clk 00:47:52] [%emt 00:06:14]} 27. Bxe7 {[%clk
00:09:49] [%emt 00:12:59]} Qxe7 {[%emt 00:00:08]} 28. Ng5 h6 {[%clk 00:48:39]
[%emt 00:00:06]} 29. Red1 {[%clk 00:10:10] [%emt 00:00:39]} Rc7 {[%clk 00:25:01]
[%emt 00:24:08]} 30. Rf3 {[%clk 00:06:28] [%emt 00:04:12]} Kg8 {[%clk 00:15:09]
[%emt 00:10:22]} 31. Rdd3 {[%clk 00:05:32] [%emt 00:01:26]} Qxa3 {[%clk
00:11:49] [%emt 00:03:49]} 32. Kh2 {[%clk 00:05:53] [%emt 00:00:09]} Qe7 {[%clk
00:10:01] [%emt 00:02:17]} 33. Rf6 {[%clk 00:05:01] [%emt 00:01:21]} Nxd4 {[%clk
00:05:26] [%emt 00:05:07]} 34. Rxd4 {[%clk 00:02:24] [%emt 00:03:07]} gxf6
{[%clk 00:05:49] [%emt 00:00:07]} 35. Rg4 {[%clk 00:01:51] [%emt 00:01:02]} fxg5
{[%clk 00:04:51] [%emt 00:01:28]} 36. hxg5 {[%clk 00:01:25] [%emt 00:00:56]} Ra8
{[%clk 00:03:28] [%emt 00:01:53]} 37. f4 {[%emt 00:01:22]} Rcc8 {[%clk 00:02:29]
[%emt 00:01:28]} 38. Qxh6 {[%clk 00:00:47] [%emt 00:00:17]} Qf8 {[%clk 00:02:38]
[%emt 00:00:21]} 39. Qh5 {[%clk 00:01:05] [%emt 00:00:12]} Rc7 {[%clk 00:02:26]
[%emt 00:00:42]} 40. g6 {[%clk 00:00:50] [%emt 00:00:45]} fxg6 {[%clk 00:01:22]
[%emt 00:01:34]} 41. Qxg6+ {[%clk 00:01:13] [%emt 00:00:08]} Rg7 {[%clk
00:01:46] [%emt 00:00:07]} 42. Qxe6+ {[%clk 00:01:39] [%emt 00:00:03]} Qf7
{[%clk 00:02:11] [%emt 00:00:05]} 43. Rxg7+ {[%clk 00:02:02] [%emt 00:00:07]}
Kxg7 {[%clk 00:02:40] [%emt 00:00:01]} 44. Qg4+ {[%clk 00:02:27] [%emt
00:00:05]} Kh8 {[%clk 00:02:47] [%emt 00:00:23]} 0-1

[Site "Europe Echecs"]

[Event "Saint Louis Masters"]
[Date "2024.12.03"]
[White "Vazquez, Guillermo"]
[Black "Woodward, Andy"]
[WhiteElo "2569"]
[BlackElo "2530"]
[Round "2.5"]
[Result "1/2-1/2"]
[TimeControl "5400+30"]

1. e4 {[%clk 01:30:47] [%emt 00:00:12]} c5 {[%clk 01:30:45] [%emt 00:00:15]} 2.
Nf3 {[%clk 01:30:58] [%emt 00:00:20]} d6 {[%clk 01:31:02] [%emt 00:00:12]} 3.
Nc3 {[%clk 01:30:12] [%emt 00:01:16]} Nf6 {[%clk 01:31:05] [%emt 00:00:27]} 4.
d4 {[%clk 01:30:07] [%emt 00:00:36]} cxd4 {[%clk 01:31:19] [%emt 00:00:15]} 5.
Qxd4 {[%clk 01:30:32] [%emt 00:00:05]} Nc6 {[%clk 01:31:30] [%emt 00:00:19]} 6.
Qd3 {[%clk 01:30:44] [%emt 00:00:18]} g6 {[%clk 01:30:18] [%emt 00:01:42]} 7.
Nd5 {[%clk 01:30:55] [%emt 00:00:20]} Bg7 {[%clk 01:30:27] [%emt 00:00:20]} 8.
c3 {[%clk 01:31:17] [%emt 00:00:10]} O-O {[%clk 01:30:32] [%emt 00:00:24]} 9.
Bg5 {[%clk 01:30:53] [%emt 00:00:54]} Bg4 {[%clk 01:25:11] [%emt 00:05:50]} 10.
Be2 {[%clk 01:30:30] [%emt 00:00:54]} Nxd5 {[%clk 01:22:28] [%emt 00:03:13]} 11.
exd5 {[%clk 01:30:43] [%emt 00:00:17]} Ne5 {[%clk 01:22:45] [%emt 00:00:12]} 12.
Nxe5 {[%clk 01:29:11] [%emt 00:02:01]} Bxe2 {[%clk 01:23:03] [%emt 00:00:12]}
13. Qxe2 {[%clk 01:29:34] [%emt 00:00:08]} Bxe5 {[%clk 01:23:21] [%emt
00:00:12]} 14. O-O {[%clk 01:22:26] [%emt 00:07:38]} Qd7 {[%clk 01:23:34] [%emt
00:00:16]} 15. a4 {[%clk 01:17:09] [%emt 00:05:49]} Rac8 {[%clk 01:17:06] [%emt
00:06:57]} 16. Rfd1 {[%clk 01:07:13] [%emt 00:10:26]} a6 {[%clk 01:10:12] [%emt
00:07:25]} 17. Be3 {[%clk 00:59:26] [%emt 00:08:17]} b5 {[%clk 01:01:25] [%emt
00:09:16]} 18. Bd4 {[%clk 00:48:52] [%emt 00:11:04]} Bxd4 {[%clk 00:48:52] [%emt
00:13:04]} 19. Rxd4 {[%clk 00:49:18] [%emt 00:00:04]} Rc5 {[%clk 00:48:55] [%emt
00:00:27]} 20. h3 {[%clk 00:35:17] [%emt 00:14:31]} 1/2-1/2

[Site "Europe Echecs"]